fUSD/lending_fUSD_20260504
["ID","MTS","AMOUNT","RATE_DAILY","PERIOD"]
[421534054,1777829633000,-150.0,0.00021781,4]
[421534037,1777829633000,-870.40321313,0.00020989,2]
[421534049,1777829633000,-150.0,0.00021781,4]
[421534053,1777829633000,-150.0,0.00021781,4]
[421534050,1777829633000,-169.10699663,0.00021781,4]
[421534051,1777829633000,-177.31547693,0.00021781,4]
[421534047,1777829633000,-3929.0,0.00021781,2]
[421534052,1777829633000,-150.0,0.00021781,4]
[421534045,1777829633000,-4925.1544,0.000217,2]
[421534063,1777829633000,-2993.13815483,0.000218,2]
[421534046,1777829633000,-870.40321313,0.000217,2]
[421534043,1777829633000,-150.0,0.00021418,4]
[421534044,1777829633000,-236.17403656,0.000217,2]
[421534038,1777829633000,-36591.9698891,0.00021,2]
[421534039,1777829633000,-150.0,0.00021055,4]
[421534048,1777829633000,-222.10612541,0.00021781,4]
[421534064,1777829658000,264.855992,7.945e-05,2]
[421534065,1777829659000,-1584.94695249,0.0001,2]
[421534069,1777829741000,-1176.18971458,0.0001,2]
[421534068,1777829741000,114206.48319993,7e-05,10]
[421534070,1777829741000,-300.0,0.00010699,2]
[421534072,1777829741000,-3252.93762768,0.000107,2]
[421534071,1777829741000,-270.88265774,0.000107,2]
[421534076,1777829743000,-76.18971458,0.000107,2]
[421534075,1777829743000,1100.0,6.999e-05,2]
[421534074,1777829743000,-1176.18971458,0.000107,2]
[421534073,1777829743000,-1176.18971458,0.000107,2]
[421534077,1777829745000,-1176.18971458,0.000107,2]
[421534078,1777829745000,191.65,0.00026796,120]
[421534080,1777829745000,300.0,6.999e-05,2]
[421534081,1777829745000,420.0,7.699e-05,2]
[421534079,1777829745000,1200.0,6.999e-05,2]
[421534083,1777829745000,300.01,8.469e-05,2]
[421534084,1777829745000,286.99,8.469e-05,2]
[421534085,1777829745000,510.0,8.469e-05,2]
[421534086,1777829745000,823.0,9.316e-05,2]
[421534082,1777829745000,1680.0,7.699e-05,2]
[421534093,1777830027000,-10000.01,0.000107,2]
[421534092,1777830027000,-9092.99475296,0.000107,2]
[421534091,1777830027000,-300.0,0.00010699,2]
[421534099,1777830028000,-793.6206611,0.00010699,2]
[421534095,1777830028000,-10000.01,0.000107,2]
[421534097,1777830028000,-793.6206611,0.00010699,2]
[421534096,1777830028000,-793.6206611,0.00010699,2]
[421534098,1777830028000,-793.6206611,0.00010699,2]
[421534102,1777830028000,-793.6206611,0.00010699,2]
[421534094,1777830028000,-10000.01,0.000107,2]
[421534100,1777830028000,-793.6206611,0.00010699,2]
[421534105,1777830028000,-793.6206611,0.00010699,2]
[421534103,1777830028000,-793.6206611,0.00010699,2]
[421534104,1777830028000,-793.6206611,0.00010699,2]
[421534106,1777830028000,-793.6206611,0.00010699,2]
[421534107,1777830028000,-793.6206611,0.00010699,2]
[421534108,1777830028000,-476.5620668,0.00010699,2]
[421534101,1777830028000,-793.6206611,0.00010699,2]
[421534121,1777830029000,-793.6206611,0.00010699,2]
[421534117,1777830029000,-793.6206611,0.00010699,2]
[421534114,1777830029000,-793.6206611,0.00010699,2]
[421534118,1777830029000,-793.6206611,0.00010699,2]
[421534116,1777830029000,-793.6206611,0.00010699,2]
[421534111,1777830029000,-793.6206611,0.00010699,2]
[421534113,1777830029000,-793.6206611,0.00010699,2]
[421534112,1777830029000,-793.6206611,0.00010699,2]
[421534119,1777830029000,-793.6206611,0.00010699,2]
[421534109,1777830029000,-317.0585943,0.00010699,2]
[421534110,1777830029000,-793.6206611,0.00010699,2]
[421534115,1777830029000,-793.6206611,0.00010699,2]
[421534120,1777830029000,-793.6206611,0.00010699,2]
[421534126,1777830029000,-793.6206611,0.00010699,2]
[421534123,1777830029000,-634.1171886,0.00010699,2]
[421534122,1777830029000,-159.5034725,0.00010699,2]
[421534134,1777830029000,-793.6206611,0.00010699,2]
[421534131,1777830029000,-793.6206611,0.00010699,2]
[421534128,1777830029000,-793.6206611,0.00010699,2]
[421534132,1777830029000,-793.6206611,0.00010699,2]
[421534133,1777830029000,-793.6206611,0.00010699,2]
[421534129,1777830029000,-793.6206611,0.00010699,2]
[421534127,1777830029000,-793.6206611,0.00010699,2]
[421534135,1777830029000,-636.0655393,0.00010699,2]
[421534124,1777830029000,-793.6206611,0.00010699,2]
[421534125,1777830029000,-793.6206611,0.00010699,2]
[421534130,1777830029000,-793.6206611,0.00010699,2]
[421534153,1777830030000,-793.62066111,0.00010699,2]
[421534154,1777830030000,-793.62066111,0.00010699,2]
[421534152,1777830030000,-793.62066111,0.00010699,2]
[421534157,1777830030000,-793.62066111,0.00010699,2]
[421534159,1777830030000,-793.62066111,0.00010699,2]
[421534158,1777830030000,-793.62066111,0.00010699,2]
[421534156,1777830030000,-793.62066111,0.00010699,2]
[421534161,1777830030000,-793.62066111,0.00010699,2]
[421534162,1777830030000,-793.62066111,0.00010699,2]
[421534155,1777830030000,-793.62066111,0.00010699,2]
[421534150,1777830030000,-474.61371611,0.00010699,2]
[421534145,1777830030000,-793.6206611,0.00010699,2]
[421534148,1777830030000,-793.6206611,0.00010699,2]
[421534146,1777830030000,-793.6206611,0.00010699,2]
[421534147,1777830030000,-793.6206611,0.00010699,2]
[421534144,1777830030000,-793.6206611,0.00010699,2]
[421534160,1777830030000,-793.62066111,0.00010699,2]
[421534142,1777830030000,-793.6206611,0.00010699,2]
[421534143,1777830030000,-793.6206611,0.00010699,2]
[421534140,1777830030000,-793.6206611,0.00010699,2]
[421534141,1777830030000,-793.6206611,0.00010699,2]
[421534138,1777830030000,-793.6206611,0.00010699,2]
[421534139,1777830030000,-793.6206611,0.00010699,2]
[421534136,1777830030000,-157.5551218,0.00010699,2]
[421534137,1777830030000,-793.6206611,0.00010699,2]
[421534149,1777830030000,-319.006945,0.00010699,2]
[421534165,1777830030000,-793.62066111,0.00010699,2]
[421534151,1777830030000,-793.62066111,0.00010699,2]
[421534166,1777830030000,-793.62066111,0.00010699,2]
[421534164,1777830030000,-791.67231054,0.00010699,2]
[421534193,1777830030000,-10000.01,0.000107,2]
[421534192,1777830030000,-10000.01,0.000107,2]
[421534190,1777830030000,-182.11916908,0.00010699,2]
[421534191,1777830030000,-455.48576006,0.000107,2]
[421534189,1777830030000,-500.0,0.00010699,2]
[421534187,1777830030000,-793.62066109,0.00010699,2]
[421534185,1777830030000,-793.62066109,0.00010699,2]
[421534188,1777830030000,-611.08821602,0.00010699,2]
[421534180,1777830030000,-793.62066111,0.00010699,2]
[421534186,1777830030000,-793.62066109,0.00010699,2]
[421534182,1777830030000,-793.62066109,0.00010699,2]
[421534183,1777830030000,-793.62066109,0.00010699,2]
[421534184,1777830030000,-793.62066109,0.00010699,2]
[421534163,1777830030000,-1.94835057,0.00010699,2]
[421534178,1777830030000,-793.62066111,0.00010699,2]
[421534168,1777830030000,-793.62066111,0.00010699,2]
[421534167,1777830030000,-793.62066111,0.00010699,2]
[421534170,1777830030000,-793.62066111,0.00010699,2]
[421534169,1777830030000,-793.62066111,0.00010699,2]
[421534171,1777830030000,-793.62066111,0.00010699,2]
[421534173,1777830030000,-793.62066111,0.00010699,2]
[421534181,1777830030000,-793.62066111,0.00010699,2]
[421534174,1777830030000,-793.62066111,0.00010699,2]
[421534175,1777830030000,-793.62066111,0.00010699,2]
[421534176,1777830030000,-478.51041725,0.00010699,2]
[421534177,1777830030000,-315.11024386,0.00010699,2]
[421534172,1777830030000,-793.62066111,0.00010699,2]
[421534179,1777830030000,-793.62066111,0.00010699,2]
[421534203,1777830031000,-170.86380189,0.00014999,2]
[421534200,1777830031000,-500.0,0.00014999,2]
[421534204,1777830031000,-2162.99558553,0.00015673,2]
[421534201,1777830031000,-515.1919464,0.00014999,2]
[421534198,1777830031000,-1879.9501,0.00014899,2]
[421534196,1777830031000,-69232.30089711,0.000107,2]
[421534197,1777830031000,-8120.0599,0.00011999,2]
[421534195,1777830031000,-10000.01,0.000107,2]
[421534202,1777830031000,-500.0,0.00014999,2]
[421534199,1777830031000,-283.04548556,0.00014899,2]
[421534194,1777830031000,-10000.01,0.000107,2]
[421534206,1777830031000,-2162.99558553,0.0001722,2]
[421534205,1777830031000,-2162.99558553,0.00016446,2]
[421534207,1777830031000,-566.4106673,0.00017444,2]
[421534217,1777830031000,-415.7501712,0.00019541,2]
[421534216,1777830031000,-3408.99,0.00019532,2]
[421534215,1777830031000,-500.0,0.00019394,2]
[421534214,1777830031000,-2162.99558553,0.00018767,2]
[421534212,1777830031000,-150.0,0.00018468,2]
[421534210,1777830031000,-949.27865774,0.00017879,2]
[421534211,1777830031000,-2162.99558553,0.00017994,2]
[421534208,1777830031000,-191.65,0.00017864,2]
[421534209,1777830031000,-783.86134226,0.00017879,2]
[421534213,1777830031000,-250.0,0.00018667,2]
[421534219,1777830032000,-8252.76458567,0.00019691,2]
[421534220,1777830032000,-10000.01,0.00019691,2]
[421534222,1777830032000,-1000.0,0.00020031,2]
[421534221,1777830032000,-1747.22541433,0.00019691,2]
[421534223,1777830032000,-2162.99558553,0.00020315,2]
[421534224,1777830032000,-2162.99558553,0.00021088,2]
[421534226,1777830032000,-2073.20658539,0.000217,2]
[421534227,1777830032000,-157.4493577,0.00021762,2]
[421534228,1777830032000,-684.57894267,0.00021762,2]
[421534230,1777830032000,-161.69808994,0.00021799,2]
[421534231,1777830032000,-2162.99558553,0.00021862,2]
[421534218,1777830032000,-1747.24541433,0.00019541,2]
[421534225,1777830032000,-2926.79341461,0.000217,2]
[421534229,1777830032000,-200.0,0.00021799,2]
[421534232,1777830033000,158.99,9.63e-05,2]
[421534233,1777830033000,158.99,0.00010506,2]
[421534235,1777830117000,-158.99,0.00012257,2]
[421534234,1777830117000,-158.99,0.00011381,2]
[421534236,1777830118000,-158.99,0.00013132,2]
[421534238,1777830159000,-300.0,0.00013776,2]
[421534239,1777830159000,-14700.0,0.00013777,2]
[421534258,1777830315000,-921.9142808,0.00013777,2]
[421534262,1777830397000,-300.0,0.00013804,2]
[421534265,1777830490000,-300.0,0.00013804,2]
[421534264,1777830490000,-300.0,0.00013804,2]
[421534263,1777830490000,-300.0,0.00013804,2]
[421534266,1777830491000,-300.0,0.00013804,2]
[421534268,1777830491000,-150.0,0.00013804,2]
[421534269,1777830491000,-150.0,0.00013804,2]
[421534267,1777830491000,-300.0,0.00013804,2]
[421534274,1777830492000,-1200.0,0.00013805,2]
[421534273,1777830492000,-1200.0,0.00013805,2]
[421534272,1777830492000,-238.37251165,0.00013805,2]
[421534270,1777830492000,-150.0,0.00013804,2]
[421534271,1777830492000,-1050.0,0.00013805,2]
[421534275,1777830493000,-1200.0,0.00013805,2]
[421534277,1777830494000,-1200.0,0.00013805,2]
[421534276,1777830494000,-1200.0,0.00013805,2]
[421534279,1777830494000,-1200.0,0.00013805,2]
[421534278,1777830494000,-1200.0,0.00013805,2]
[421534280,1777830568000,565.77776543,0.00030137,120]
[421534282,1777830592000,217.081402,0.00029691,120]
[421534281,1777830592000,-3191.37942916,0.00013528,2]
[421534283,1777830593000,180.07237463,0.00030137,120]
[421534284,1777830621000,-4285.35756954,0.00013528,2]
[421534962,1777830703000,-1200.0,0.00013804,2]
[421534978,1777830715000,-504.0,0.00015184,2]
[421534979,1777830715000,-2500.0,0.00015186,2]
[421534981,1777830715000,-158.99,0.00015759,2]
[421534982,1777830715000,-587.0,0.00016575,2]
[421534986,1777830715000,-795.0,0.00018162,2]
[421534987,1777830715000,-158.99,0.00018385,2]
[421534988,1777830715000,-168.7,0.00019047,2]
[421534990,1777830715000,-500.0,0.000192,7]
[421534993,1777830715000,-610.98238958,0.00019786,5]
[421534992,1777830715000,-15621.9142808,0.00019747,2]
[421534989,1777830715000,-870.32,0.0001908,2]
[421534995,1777830715000,-500.0,0.00019786,2]
[421534996,1777830715000,-500.0,0.00019786,2]
[421534994,1777830715000,-500.0,0.00019786,2]
[421534997,1777830715000,-500.0,0.00019786,2]
[421534991,1777830715000,-158.99,0.0001926,2]
[421534980,1777830715000,-300.0,0.00015186,2]
[421534965,1777830715000,-51635.60328861,0.00013805,2]
[421534983,1777830715000,-158.99,0.00016634,2]
[421534963,1777830715000,-300.0,0.00013804,2]
[421534964,1777830715000,-345.55505471,0.00013805,2]
[421534999,1777830715000,-500.0,0.00019786,2]
[421534966,1777830715000,-1085.56,0.00013805,2]
[421534968,1777830715000,-20242.6619252,0.00013805,2]
[421534967,1777830715000,-2908.62641723,0.00013805,2]
[421534970,1777830715000,-231.44368891,0.00013812,2]
[421534985,1777830715000,-169.05,0.00017909,2]
[421534971,1777830715000,-1426.9550251,0.00013819,2]
[421534973,1777830715000,-2500.0,0.00014275,2]
[421534974,1777830715000,-2500.0,0.00014275,2]
[421534969,1777830715000,-2500.0,0.00013812,2]
[421534975,1777830715000,-2500.0,0.00014275,2]
[421534976,1777830715000,-158.99,0.00014883,2]
[421534977,1777830715000,-420.0,0.00015126,2]
[421534984,1777830715000,-158.99,0.00017509,2]
[421534972,1777830715000,-158.99,0.00014008,2]
[421534998,1777830715000,-500.0,0.00019786,2]
[421535007,1777830715000,-500.0,0.00019786,2]
[421535003,1777830715000,-500.0,0.00019786,2]
[421535024,1777830715000,-500.0,0.00019786,2]
[421535023,1777830715000,-500.0,0.00019786,2]
[421535025,1777830715000,-500.0,0.00019786,2]
[421535026,1777830715000,-500.0,0.00019786,2]
[421535027,1777830715000,-500.0,0.00019786,2]
[421535030,1777830715000,-217.25562946,0.00019786,2]
[421535028,1777830715000,-500.0,0.00019786,2]
[421535022,1777830715000,-500.0,0.00019786,2]
[421535031,1777830715000,-500.0,0.00019786,2]
[421535032,1777830715000,-500.0,0.00019786,2]
[421535033,1777830715000,-500.0,0.00019786,2]
[421535036,1777830715000,-500.0,0.00019786,2]
[421535037,1777830715000,-500.0,0.00019786,2]
[421535035,1777830715000,-500.0,0.00019786,2]
[421535034,1777830715000,-500.0,0.00019786,2]
[421535038,1777830715000,-500.0,0.00019786,2]
[421535000,1777830715000,-500.0,0.00019786,2]
[421535021,1777830715000,-500.0,0.00019786,2]
[421535029,1777830715000,-500.0,0.00019786,2]
[421535019,1777830715000,-500.0,0.00019786,2]
[421535020,1777830715000,-500.0,0.00019786,2]
[421535002,1777830715000,-500.0,0.00019786,2]
[421535001,1777830715000,-500.0,0.00019786,2]
[421535004,1777830715000,-500.0,0.00019786,2]
[421535006,1777830715000,-500.0,0.00019786,2]
[421535008,1777830715000,-500.0,0.00019786,2]
[421535009,1777830715000,-500.0,0.00019786,2]
[421535011,1777830715000,-500.0,0.00019786,2]
[421535005,1777830715000,-500.0,0.00019786,2]
[421535012,1777830715000,-500.0,0.00019786,2]
[421535017,1777830715000,-172.55629457,0.00019786,2]
[421535014,1777830715000,-500.0,0.00019786,2]
[421535015,1777830715000,-500.0,0.00019786,2]
[421535016,1777830715000,-500.0,0.00019786,2]
[421535013,1777830715000,-500.0,0.00019786,2]
[421535010,1777830715000,-500.0,0.00019786,2]
[421535018,1777830715000,-500.0,0.00019786,2]
[421535052,1777830716000,-500.0,0.00019786,2]
[421535053,1777830716000,-500.0,0.00019786,2]
[421535054,1777830716000,-500.0,0.00019786,2]
[421535055,1777830716000,-500.0,0.00019786,2]
[421535057,1777830716000,-5318.16,0.00019804,2]
[421535061,1777830716000,-870.32,0.00021465,2]
[421535062,1777830716000,-180.17429371,0.00021549,2]
[421535059,1777830716000,-17741.7253,0.00020988,2]
[421535046,1777830716000,-500.0,0.00019786,2]
[421535056,1777830716000,-85906.3791974,0.00019787,2]
[421535050,1777830716000,-500.0,0.00019786,2]
[421535040,1777830716000,-415.53561889,0.00019786,2]
[421535049,1777830716000,-500.0,0.00019786,2]
[421535051,1777830716000,-500.0,0.00019786,2]
[421535045,1777830716000,-500.0,0.00019786,2]
[421535047,1777830716000,-500.0,0.00019786,2]
[421535044,1777830716000,-500.0,0.00019786,2]
[421535043,1777830716000,-500.0,0.00019786,2]
[421535042,1777830716000,-500.0,0.00019786,2]
[421535041,1777830716000,-500.0,0.00019786,2]
[421535039,1777830716000,-500.0,0.00019786,2]
[421535058,1777830716000,-4692.38,0.00020315,2]
[421535048,1777830716000,-500.0,0.00019786,2]
[421535060,1777830716000,-2000.0,0.00020988,2]
[421535072,1777830716000,-528.89717363,0.00021549,2]
[421535066,1777830716000,-500.0,0.00021549,2]
[421535086,1777830716000,-693.27386168,0.0002155,2]
[421535084,1777830716000,-383.15,0.0002155,2]
[421535085,1777830716000,-254.88200584,0.0002155,2]
[421535083,1777830716000,-459.67,0.0002155,2]
[421535082,1777830716000,-370.43639343,0.0002155,2]
[421535081,1777830716000,-380.52932165,0.0002155,2]
[421535078,1777830716000,-1555.26,0.0002155,2]
[421535080,1777830716000,-829.67010334,0.0002155,2]
[421535079,1777830716000,-48993.48432967,0.0002155,2]
[421535077,1777830716000,-3511.29464828,0.0002155,2]
[421535076,1777830716000,-3504.56700848,0.0002155,2]
[421535063,1777830716000,-500.0,0.00021549,2]
[421535069,1777830716000,-500.0,0.00021549,2]
[421535070,1777830716000,-500.0,0.00021549,2]
[421535087,1777830716000,-10919.104,0.0002155,2]
[421535068,1777830716000,-500.0,0.00021549,2]
[421535071,1777830716000,-500.0,0.00021549,2]
[421535067,1777830716000,-443.37918321,0.00021549,2]
[421535074,1777830716000,-1133.67075505,0.0002155,2]
[421535073,1777830716000,-200.0,0.00021549,2]
[421535065,1777830716000,-500.0,0.00021549,2]
[421535064,1777830716000,-500.0,0.00021549,2]
[421535075,1777830716000,-72709.01140394,0.0002155,2]
[421535088,1777830717000,-669.52851701,0.0002155,2]
[421535089,1777830717000,-20589.99173073,0.0002155,2]
[421535090,1777830717000,-3050.33739467,0.0002155,2]
[421535091,1777830717000,-704.43794619,0.0002155,2]
[421535092,1777830717000,320.0,0.00025195,120]
[421535093,1777830717000,320.0,0.00027485,120]
[421535095,1777830717000,-198.19197491,0.00013805,2]
[421535094,1777830717000,-1001.80802509,0.00013804,2]
[421535096,1777830718000,-190.56499523,0.00013805,2]
[421535098,1777830722000,932.94137042,0.00010699,2]
[421535097,1777830722000,769.36312026,0.00010699,2]
[421535101,1777830746000,500.0,0.00013704,2]
[421535106,1777830786000,198.499884,0.00029664,120]
[421535107,1777830793000,5290.17981,0.00028518,120]
[421535109,1777830815000,10000.0,0.00024,30]
[421535110,1777830837000,353.02,9.954e-05,2]
[421535111,1777830837000,353.02,0.00010478,2]
[421535113,1777830837000,353.02,0.00011525,2]
[421535114,1777830837000,353.02,0.00012049,2]
[421535112,1777830837000,353.02,0.00011002,2]
[421535118,1777830838000,26.45449068,0.00013621,2]
[421535117,1777830838000,326.56550932,0.00013621,2]
[421535115,1777830838000,353.02,0.00012573,2]
[421535116,1777830838000,353.02,0.00013097,2]
[421535119,1777830840000,10000.0,0.00024,30]
[421535120,1777830841000,1110.868316,0.00028098,120]
[421535121,1777830894000,1509.249471,0.00025534,120]
[421535122,1777830928000,-250.0,0.00014,2]
[421535123,1777830929000,-500.0,0.0001404,2]
[421535124,1777830943000,-353.02,0.00014145,2]
[421535125,1777830945000,-170.0,0.00014623,2]
[421535130,1777831065000,3731.536925,0.00025254,120]
[421535132,1777831084000,232.530073,0.00025254,120]
[421535135,1777831126000,192.011518,0.00025254,120]
[421535136,1777831152000,754.624736,0.00025254,120]
[421535137,1777831202000,4044.78225713,0.0001425,2]
[421535140,1777831353000,1592.885584,0.00023285,120]
[421535149,1777831374000,240.254407,0.00023285,120]
[421535150,1777831406000,983.41413,0.00023285,120]
[421535151,1777831585000,796.442791,0.00023285,120]
[421535155,1777831603000,-385.3783,0.00014546,2]
[421535156,1777831603000,-963.81120697,0.00014557,2]
[421535154,1777831603000,-252.4570655,0.00014509,2]
[421535159,1777831670000,486.33,0.00026256,120]
[421535160,1777831678000,235.74,8.746e-05,2]
[421535161,1777831678000,235.74,9.206e-05,2]
[421535165,1777831679000,235.74,0.00011047,2]
[421535164,1777831679000,235.74,0.00010587,2]
[421535163,1777831679000,235.74,0.00010127,2]
[421535162,1777831679000,235.74,9.667e-05,2]
[421535166,1777831680000,235.74,0.00011508,2]
[421535167,1777831680000,235.74,0.00011968,2]
[421535168,1777831680000,235.74,0.00012428,2]
[421535169,1777831680000,1420.251028,0.00022397,120]
[421535170,1777831680000,235.74,0.00012889,2]
[421535171,1777831681000,235.74,0.00013349,2]
[421535172,1777831781000,170.23,0.00028322,120]
[421535356,1777832120000,-235.74,0.0001565,2]
[421535352,1777832120000,-150.0,0.00014908,2]
[421535358,1777832120000,-103.08753516,0.00015999,2]
[421535355,1777832120000,-353.02,0.00015193,2]
[421535351,1777832120000,-235.74,0.0001473,2]
[421535357,1777832120000,-353.02,0.00015717,2]
[421535359,1777832120000,-196.91246484,0.00015999,2]
[421535353,1777832120000,-235.74,0.0001519,2]
[421535361,1777832120000,-412.77728069,0.00016,2]
[421535360,1777832120000,-387.88708621,0.00016,2]
[421535362,1777832120000,-952.45710122,0.00016,2]
[421535364,1777832120000,-1452.0,0.00016084,2]
[421535354,1777832120000,-794.95886703,0.0001519,2]
[421535350,1777832120000,-288.23477535,0.00014693,2]
[421535336,1777832120000,-235.74,0.0001427,2]
[421535349,1777832120000,-213.15937692,0.00014693,2]
[421535348,1777832120000,-353.02,0.00014669,2]
[421535346,1777832120000,-78.22401692,0.00014623,2]
[421535344,1777832120000,-500.0,0.00014623,2]
[421535343,1777832120000,-126.45,0.00014623,2]
[421535342,1777832120000,-1200.0,0.00014622,2]
[421535345,1777832120000,-500.0,0.00014623,2]
[421535341,1777832120000,-300.0,0.00014622,2]
[421535340,1777832120000,-300.0,0.00014622,2]
[421535338,1777832120000,-387.105,0.00014622,2]
[421535337,1777832120000,-12.48697237,0.00014622,2]
[421535335,1777832120000,-235.74,0.00013809,2]
[421535365,1777832120000,-235.74,0.00016111,2]
[421535347,1777832120000,-421.77598308,0.00014623,2]
[421535369,1777832120000,-353.02,0.00016764,2]
[421535339,1777832120000,-65.40802763,0.00014622,2]
[421535366,1777832120000,-353.02,0.0001624,2]
[421535363,1777832120000,-420.0,0.00016009,2]
[421535395,1777832120000,-185.91,0.00017996,2]
[421535396,1777832120000,-4000.0,0.00018253,2]
[421535392,1777832120000,-5584.24,0.00017939,2]
[421535390,1777832120000,-200.0,0.00017899,2]
[421535397,1777832120000,-320.0,0.00018323,2]
[421535394,1777832120000,-1852.42,0.00017967,2]
[421535391,1777832120000,-559.08946952,0.00017899,2]
[421535389,1777832120000,-208.98,0.00017884,2]
[421535393,1777832120000,-1322.19,0.00017961,2]
[421535388,1777832120000,-4000.0,0.00017818,2]
[421535386,1777832120000,-163.39,0.00017773,2]
[421535385,1777832120000,-2058.48,0.00017629,2]
[421535383,1777832120000,-5771.68,0.00017551,2]
[421535384,1777832120000,-151.18,0.00017591,2]
[421535387,1777832120000,-353.02,0.00017812,2]
[421535379,1777832120000,-235.74,0.00017492,2]
[421535382,1777832120000,-252.4570655,0.00017512,2]
[421535367,1777832120000,-244.2,0.00016438,2]
[421535368,1777832120000,-235.74,0.00016571,2]
[421535374,1777832120000,-170.23,0.00017226,2]
[421535370,1777832120000,-163.39,0.00016884,2]
[421535373,1777832120000,-153.81,0.00017214,2]
[421535372,1777832120000,-6478.77,0.00017146,2]
[421535376,1777832120000,-4000.0,0.00017383,2]
[421535375,1777832120000,-353.02,0.00017288,2]
[421535378,1777832120000,-1059.89,0.00017443,2]
[421535381,1777832120000,-500.0,0.00017508,2]
[421535377,1777832120000,-150.0,0.00017438,2]
[421535371,1777832120000,-235.74,0.00017031,2]
[421535380,1777832120000,-486.33,0.00017504,2]
[421535430,1777832121000,-1023.4079539,0.00020547,2]
[421535426,1777832121000,-244.2,0.00020381,2]
[421535429,1777832121000,-3682.25436102,0.00020547,2]
[421535428,1777832121000,-252.4570655,0.00020514,2]
[421535425,1777832121000,-392.03,0.00020316,2]
[421535424,1777832121000,-240.254408,0.00020234,2]
[421535431,1777832121000,-5202.6845,0.00020547,2]
[421535423,1777832121000,-203.603807,0.00020234,7]
[421535427,1777832121000,-198.499884,0.0002043,7]
[421535433,1777832121000,-12095.96564596,0.00020559,2]
[421535436,1777832121000,-500.0,0.00020646,2]
[421535434,1777832121000,-320.0,0.00020614,2]
[421535435,1777832121000,-200.0,0.00020646,2]
[421535438,1777832121000,-500.0,0.00020646,2]
[421535441,1777832121000,-500.0,0.00020646,2]
[421535439,1777832121000,-500.0,0.00020646,2]
[421535440,1777832121000,-500.0,0.00020646,2]
[421535442,1777832121000,-420.22802154,0.00020646,2]
[421535443,1777832121000,-360.36542825,0.00020646,2]
[421535445,1777832121000,-500.0,0.00020646,2]
[421535422,1777832121000,-1322.19,0.00020206,2]
[421535432,1777832121000,-1086.018,0.00020547,2]
[421535420,1777832121000,-1213.87,0.00020145,2]
[421535407,1777832121000,-500.0,0.000192,7]
[421535419,1777832121000,-353.02,0.00019908,2]
[421535398,1777832121000,-353.02,0.00018336,2]
[421535399,1777832121000,-244.2,0.0001841,2]
[421535401,1777832121000,-449.85,0.00018623,2]
[421535403,1777832121000,-4000.0,0.00018687,2]
[421535400,1777832121000,-449.85,0.00018545,2]
[421535402,1777832121000,-163.39,0.00018661,2]
[421535404,1777832121000,-353.02,0.0001886,2]
[421535444,1777832121000,-500.0,0.00020646,2]
[421535405,1777832121000,-153.81,0.00018936,2]
[421535406,1777832121000,-4000.0,0.00019122,2]
[421535409,1777832121000,-486.33,0.00019692,2]
[421535411,1777832121000,-152.0,0.00019782,7]
[421535408,1777832121000,-353.02,0.00019384,2]
[421535410,1777832121000,-152.0,0.00019777,7]
[421535412,1777832121000,-152.0,0.00019782,7]
[421535416,1777832121000,-216.00555089,0.00019786,2]
[421535413,1777832121000,-1027.43622372,0.00019786,5]
[421535414,1777832121000,-194.97329555,0.00019786,5]
[421535415,1777832121000,-501.49121853,0.00019786,2]
[421535417,1777832121000,-398.69653065,0.00019786,2]